Workbook

Sheet Sheet1
A1: 2025年生产部1月接收处置记录统计表 | R1: 自产废物
A2: 废物名称 | B2: 危废代码 | C2: 形态 | D2: 上月结存 | E2: 本月接收量 | F2: 处置量及工艺 | J2: 库存量 | K2: 1#库 | L2: 2#库 | M2: 干化 | N2: 罐区 | O2: 料坑 | R2: 废物名称 | S2: 上月结存 | T2: 本月产生量 | U2: 包数 | V2: 本月处理 | Y2: 库存 | Z2: 备注 | AA2: 存储位置
F3: 固废焚烧 | G3: 废液焚烧 | H3: 清洗大桶 | I3: 污泥干化 | K3: 1#库 | L3: 2#库 | M3: 干化 | N3: 罐区 | O3: 料坑 | V3: 焚烧处置 | W3: 液体炉 | X3: 拉运
A4: 含乙二醇废液 | B4: 271-001-02 | C4: 液态 | D4: 1.206 | J4: =D4+E4-F4-G4-H4-I4 -> 1.206 | K4: 1.206 | P4: =K4+L4+M4+N4+O4 -> 1.206 | R4: 炉渣（回转窑） | S4: 150.405 | T4: =106.195-19.95 -> 86.245 | U4: =98-18 -> 80 | Y4: =S4+T4-V4-X4-W4 -> 236.65
A5: 反应残渣2 | B5: 271-001-02 | C5: 固态 | D5: 3.973 | F5: =3.453 -> 3.453 | J5: 0.52 | K5: 0.52 | P5: 0.52 | R5: 飞灰（回转窑） | S5: 0.2 | T5: 13.93 | U5: 30 | Y5: 14.13
A6: 反应残渣3 | B6: 271-001-02 | C6: 半固态 | D6: 11.648 | J6: 11.648 | K6: 11.648 | P6: 11.648 | R6: 飞灰（废液炉） | S6: 0.865 | Y6: 0.865
A7: 废有机溶剂 | B7: 271-002-02 | C7: 液态 | D7: 0 | J7: 0 | P7: 0 | R7: 废油渣/泥 | S7: 0 | Y7: 0 | Z7: 精馏切水后剩下的罐底泥
A8: 过滤介质 | B8: 271-003-02 | C8: 固态 | D8: 2.4938 | F8: =1.0238+1.47 -> 2.4938 | J8: 0 | P8: 0 | R8: 含油污水 | S8: 0 | Y8: 0 | Z8: 蒸汽清洗过程 | AA8: 2#库
A9: 废盐 | B9: 271-005-02 | C9: 固态 | D9: 0 | E9: =25.78 -> 25.78 | F9: =12.78+13 -> 25.78 | J9: 0 | P9: 0 | R9: 废商标 | S9: 0 | Y9: 0 | Z9: 除商标 | AA9: 2#库
A10: 实验室废液 | B10: 900-002-03 | C10: 液态 | D10: 102.294 | F10: =0.15 -> 0.15 | J10: 102.144 | L10: 102.144 | P10: 102.144 | R10: 废残液 | S10: 0 | Y10: 0 | Z10: 抽残液 | AA10: 2#库
A11: 高危化学品 | B11: 900-002-03 | C11: 半固态 | D11: 0 | J11: 0 | P11: 0 | R11: 废渣 | S11: 0 | Y11: 0 | Z11: 清洗过程 | AA11: 2#库
A12: 一般废药品 | B12: 900-002-03 | C12: 固态 | D12: 0.037 | F12: =0.037 -> 0.037 | J12: 0 | P12: 0 | R12: 漆渣 | S12: 0 | Y12: 0 | Z12: 清洗过程
A13: 磷化铝、杀虫剂 | B13: 900-003-04 | C13: 固态 | D13: 0 | E13: =0.3085+0.04 -> 0.3485 | F13: =0.3085+0.04 -> 0.3485 | J13: =D13+E13-F13-G13-H13-I13 -> 0 | P13: 0 | R13: 污水厂污泥 | S13: 0 | Y13: 0 | Z13: 水处理后产生的污泥 | AA13: 2#库
A14: 废药物、药品 杀虫剂、磷化铝等 | B14: 900-003-04 | C14: 半固态 | D14: 0 | J14: 0 | P14: 0 | R14: 废清洗剂 | S14: 0 | Y14: 0 | Z14: 清洗剂清洗过程
A15: 废盐 | B15: 263-008-04 | C15: 固态 | D15: 0 | J15: 0 | P15: 0
A16: 蒸馏残液 | B16: 263-008-04 | C16: 半固态 | D16: 0 | J16: 0 | P16: 0
A17: 废渣 | B17: 263-009-04 | C17: 固态 | D17: 0 | J17: 0 | P17: 0
A18: 污泥 | B18: 263-011-04 | C18: 固态 | D18: 0 | J18: 0 | P18: 0
A19: 废弃木材 | B19: 201-003-05 | C19: 固态 | D19: 0 | J19: 0 | P19: 0
A20: 废有机溶剂 | B20: 900-401-06 | C20: 液态 | D20: 0 | J20: 0 | P20: 0
A21: 废有机溶剂及废物 | B21: 900-402-06 | C21: 液态 | D21: 128.511 | E21: =1.302+2.59 -> 3.892 | F21: =1.8+8+8.85+8+10+10+10.6+2.6+3.932 -> 63.782 | J21: 68.621 | L21: 68.621 | P21: 68.621
A22: 清洗剂、渗透剂包装物 | B22: 900-402-06 | C22: 固态 | D22: 0 | J22: 0 | P22: 0
A23: 废有机溶剂 | B23: 900-404-06 | C23: 液态 | D23: 23.3626 | F23: =0.15+0.1806+3+4.16+0.8+4.34 -> 12.6306 | J23: 10.732 | L23: 10.732 | P23: 10.732
A24: 定期更换的活性炭 | B24: 900-405-06 | C24: 固态 | D24: 0 | J24: 0 | P24: 0
A25: 丙烯酸甲酯聚合物 | B25: 900-407-06 | C25: 固态 | D25: 0 | J25: 0 | P25: 0
A26: 废有机溶剂 | B26: 900-407-06 | C26: 液态 | D26: 142.1371 | J26: 142.1371 | L26: 142.1371 | P26: 142.1371
A27: 污泥 | B27: 900-409-06 | C27: 半固态 | D27: 0 | J27: 0 | P27: 0
A28: 油污水 | B28: 251-001-08 | C28: 液态 | D28: 661.02 | E28: =42.17 -> 42.17 | J28: 703.19 | N28: =703.19-45 -> 658.19 | O28: 45 | P28: 703.19
A29: 清罐油渣 | B29: 251-002-08 | C29: 固态 | D29: 0 | J29: 0 | P29: 0
A30: 浮渣、污泥 | B30: 251-003-08 | C30: 固态 | D30: 0 | J30: 0 | P30: 0
A31: 废滤芯 | B31: 251-012-08 | C31: 固态 | D31: 0 | J31: 0 | P31: 0
A32: 废溶剂油 | B32: 291-001-08 | C32: 液态 | D32: 0 | J32: 0 | P32: 0
A33: 废溶剂油 | B33: 291-001-08 | C33: 半固态 | D33: 70.22 | F33: =20.42+7 -> 27.42 | J33: 42.8 | K33: 42.8 | P33: 42.8
A34: 油泥、油脚 | B34: 071-001-08 | C34: 液态 | D34: 0 | J34: 0 | P34: 0
A35: 含油泥浆 | B35: 071-002-08 | C35: 液态 | D35: 1125.3 | J35: 1125.3 | N35: 1125.3 | P35: 1125.3
A36: 含油岩屑 | B36: 071-002-08 | C36: 半固态 | D36: 377.794 | F36: =6+5.54+2.21+5.54+5.54+5.54+5.54+5.54+12.22+6.68+11.11+18.9+12.22 -> 102.58 | J36: 275.214 | M36: 275.214 | P36: 275.214
A37: 废油泥 | B37: 900-200-08 | C37: 半固态 | D37: 0.81 | J37: 0.81 | L37: 0.81 | P37: 0.81
A38: 研磨泥 | B38: 900-200-08 | C38: 固态 | D38: 0 | E38: =16.86+12.36 -> 29.22 | F38: =12.36+16.86 -> 29.22 | J38: 0 | P38: 0
A39: HW08废油 | B39: 900-200-08 | C39: 液态 | D39: 122.02 | E39: =10.398 -> 10.398 | F39: =2+5.88+5.44 -> 13.32 | J39: 119.098 | K39: 21.618 | N39: 97.48 | P39: 119.098
A40: 废煤油 | B40: 900-201-08 | C40: 液态 | D40: 3.86 | J40: 3.86 | L40: 1 | N40: 2.86 | P40: 3.86
A41: 油泥 | B41: 900-201-08 | C41: 半固态 | D41: 0 | J41: 0 | P41: 0
A42: 废润滑油废浮渣 | B42: 900-209-08 | C42: 半固态 | D42: 0.153 | E42: =0.082 -> 0.082 | F42: =0.05+0.103 -> 0.153 | J42: 0.082 | K42: 0.082 | P42: 0.082
A43: 水处理浮渣及污泥 | B43: 900-210-08 | C43: 半固态 | D43: 279.6116 | E43: =10.01 -> 10.01 | F43: =1.4176+0.124+9.51+10.01 -> 21.0616 | J43: 268.56 | K43: 8.42 | N43: =260.14-75 -> 185.14 | O43: 75 | P43: 268.56
A44: 废机油、含油废水 | B44: 900-210-08 | C44: 液态 | D44: 77.92 | J44: 77.92 | L44: 59.9 | N44: 18.02 | P44: 77.92
A45: 废油泥 | B45: 900-210-08 | C45: 固态 | D45: 79.9 | E45: =6.32+7.7115+5.03 -> 19.0615 | F45: =6.32+7.7115 -> 14.0315 | J45: 84.93 | K45: 45.3 | L45: 39.63 | P45: 84.93
A46: 废水处理过程产废油、油泥、浮渣 | B46: 900-210-08 | C46: 液态 | D46: 0 | J46: 0 | P46: 0
A47: 废白土 | B47: 900-213-08 | C47: 固态 | D47: 0 | J47: 0 | P47: 0
A48: 废机油 | B48: 900-213-08 | C48: 液态 | D48: 0 | J48: 0 | P48: 0
A49: 废矿物油 | B49: 900-214-08 | C49: 液态 | D49: 99.02579 | E49: =0.823 -> 0.823 | F49: =0.3519+0.8488 -> 1.2007 | J49: 98.64809 | N49: 98.64809 | P49: 98.64809
A50: 废锂基脂 | B50: 900-214-08 | C50: 半固态 | D50: 2.1 | J50: 2.1 | K50: 2.1 | P50: 2.1
A51: 废矿物油 | B51: 900-217-08 | C51: 液态 | D51: 44.7575 | E51: =6.628+3.443+4.51+1.2 -> 15.781 | F51: =0.69 -> 0.69 | J51: 59.8485 | N51: 59.8485 | P51: 59.8485
A52: 废甘油 | B52: 900-217-08 | C52: 半固态 | D52: 0 | J52: 0 | P52: 0
A53: 废液压油 | B53: 900-218-08 | C53: 液态 | D53: 47.145 | E53: =4.18 -> 4.18 | F53: =0.8 -> 0.8 | J53: 50.525 | N53: 50.525 | P53: 50.525
A54: 废冷冻机油 | B54: 900-219-08 | C54: 液态 | D54: 11.9 | F54: =0.84 -> 0.84 | J54: 11.06 | N54: 11.06 | P54: 11.06
A55: 废矿物油与含矿物油废物 | B55: 900-220-08 | C55: 液态 | D55: 6.02733 | E55: =2.6 -> 2.6 | F55: =0.01833 -> 0.01833 | J55: 8.609 | N55: 8.609 | P55: 8.609
A56: 清罐污泥 | B56: 900-220-08 | C56: 固态 | D56: 0 | J56: 0 | P56: 0
A57: 废油泥 | B57: 900-221-08 | C57: 半固态 | D57: 0 | J57: 0 | P57: 0
A58: 废矿物油 | B58: 900-249-08 | C58: 液态 | D58: 318.17618 | E58: =10.08+1.4725+0.3 -> 11.8525 | F58: =13 -> 13 | G58: =10.817 -> 10.817 | J58: 306.21168 | K58: 6.34 | L58: 185.28 | N58: =114.59168-35 -> 79.59168 | O58: 35 | P58: 306.21168
A59: 废矿物油、废油桶 | B59: 900-249-08 | C59: 固态 | D59: 69.4804 | E59: =0.04+2.96 -> 3 | F59: =2.7894+0.1+0.1195+0.0615+14.94 -> 18.0104 | H59: =8.18+4.96+1.86+9.2+0.11 -> 24.31 | J59: 30.16 | L59: 30.16 | P59: 30.16
A60: 废矿物油、油泥 | B60: 900-249-08 | C60: 半固态 | D60: 3.04 | F60: =3.04 -> 3.04 | J60: 0 | P60: 0
A61: 废水、乳化液 | B61: 900-007-09 | C61: 液态 | D61: 178.9078 | E61: =0.6495+0.5+0.98+0.538+6.481 -> 9.1485 | F61: =0.52+0.244+0.5 -> 1.264 | J61: 186.7923 | L61: =186.7923-29 -> 157.7923 | O61: 29 | P61: 186.7923
A62: 沉淀渣 | B62: 900-007-09 | C62: 固态 | D62: 0.01 | F62: =0.01 -> 0.01 | J62: 0 | P62: 0
A63: 废乳化液 | B63: 900-005-09 | C63: 液态 | D63: 0 | J63: 0 | P63: 0
A64: 废乳化液 | B64: 900-006-09 | C64: 液态 | D64: 301.942 | E64: =12.92+6+2 -> 20.92 | F64: =0.92+0.45+0.075+0.28+0.6+3.5+3.5 -> 9.325 | J64: 313.537 | L64: =313.537-10 -> 303.537 | O64: 10 | P64: 313.537
A65: 砂轮沫 | B65: 900-006-09 | C65: 固态 | D65: 0 | J65: 0 | P65: 0
A66: 废焦油渣 | B66: 252-005-11 | C66: 固态 | D66: 0 | E66: =30.28+30.84+16.4+53.52 -> 131.04 | F66: =10.28+10+10+15.84+15+16.4+10 -> 87.52 | J66: 43.52 | K66: 43.52 | P66: 43.52
A67: 煤焦油、釜残 | B67: 900-013-11 | C67: 固态 | D67: 0 | E67: =8.001 -> 8.001 | F67: =8.001 -> 8.001 | J67: 0 | P67: 0
A68: 煤焦油 | B68: 900-013-11 | C68: 液态 | D68: 1 | J68: 1 | K68: 1 | P68: =K68+L68+M68+N68+O68 -> 1
A69: 釜残 | B69: 900-013-11 | C69: 半固态 | D69: 342.03 | F69: =0.2+10.33+5+5 -> 20.53 | J69: 321.5 | K69: 321.5 | P69: 321.5
A70: 煤焦油 | B70: 451-003-11 | C70: 半固态 | D70: 0.28 | F70: =0.28 -> 0.28 | J70: 0 | P70: 0
A71: 煤焦油 | B71: 451-003-11 | C71: 液态 | D71: 65.26 | E71: =52.02 -> 52.02 | F71: =5+6+6+15+15 -> 47 | J71: 70.28 | K71: 18.26 | L71: 52.02 | P71: 70.28
A72: 焦油渣 | B72: 451-003-11 | C72: 固态 | D72: 0 | J72: 0 | P72: 0
A73: 焦油渣 | B73: 451-001-11 | C73: 半固态 | D73: 21.84 | F73: =6.84 -> 6.84 | J73: 15 | K73: 15 | P73: 15
A74: 漆渣 | B74: 900-250-12 | C74: 固态 | D74: 0 | E74: =12.1+27 -> 39.1 | F74: =10+7+5 -> 22 | J74: 17.1 | K74: 17.1 | P74: 17.1
A75: 漆渣 | B75: 900-250-12 | C75: 半固态 | D75: 1.06 | F75: =1.06 -> 1.06 | J75: 0 | P75: 0
A76: 油漆渣 | B76: 900-251-12 | C76: 固态 | D76: 1.98 | F76: =1.98 -> 1.98 | J76: 0 | P76: 0
A77: 废彩涂液 | B77: 900-252-12 | C77: 液态 | D77: 57.9 | J77: =D77+E77-F77-G77-H77-I77 -> 57.9 | K77: 57.9 | P77: 57.9
A78: 废漆渣 | B78: 900-252-12 | C78: 固态 | D78: 79.64875 | E78: =26.0195+4+26.74+7.657+15.9+36.15+31.965 -> 148.4315 | F78: =22.07994+7.05769+6.18112+2.56+4+0.01+4.2+11.9095+3+11.5+6.157-0.3 -> 78.35525 | J78: 149.725 | K78: 128.075 | L78: 21.65 | P78: 149.725
A79: 漆渣 | B79: 900-252-12 | C79: 半固态 | D79: 0 | J79: 0 | P79: 0
A80: 废油墨 | B80: 900-253-12 | C80: 液态 | D80: 0 | J80: 0 | P80: 0
A81: 废浆 | B81: 900-253-12 | C81: 固态 | D81: 0 | J81: 0 | P81: 0
A82: 原材料废包装袋 | B82: 900-255-12 | C82: 固态 | D82: 0 | E82: =0.3 -> 0.3 | F82: 0.3 | J82: 0 | P82: 0
A83: 废油漆 | B83: 900-256-12 | C83: 液态 | D83: 0 | J83: 0 | P83: 0
A84: 废油漆 | B84: 900-256-12 | C84: 半固态 | D84: 0 | J84: 0 | P84: 0
A85: 油墨渣子、油漆 | B85: 900-299-12 | C85: 半固态 | D85: 1.9723 | F85: =1.34+0.6323 -> 1.9723 | J85: 0 | P85: 0
A86: 硒鼓墨盒 | B86: 900-299-12 | C86: 固态 | D86: 0.737 | E86: =0.011 -> 0.011 | F86: =0.337+0.01+0.2 -> 0.547 | J86: 0.201 | K86: 0.201 | P86: 0.201
A87: 油漆渣 | B87: 900-299-12 | C87: 液态 | D87: 4.4 | F87: =0.4 -> 0.4 | J87: 4 | K87: 2.4 | L87: 1.6 | P87: 4
A88: 废油墨 | B88: 264-011-12 | C88: 液态 | D88: 0.0595 | F88: =0.0595 -> 0.0595 | J88: 0 | P88: 0
A89: 油墨渣 | B89: 264-011-12 | C89: 固态 | D89: 0 | J89: 0 | P89: 0
A90: 污泥 | B90: 264-012-12 | C90: 固态 | D90: 0 | J90: 0 | P90: 0
A91: 废漆渣稀释剂混合物 | B91: 264-013-12 | C91: 液态 | D91: 0 | J91: 0 | P91: 0
A92: 发泡废料，废胶水 | B92: 900-014-13 | C92: 半固态 | D92: 0.42 | F92: =0.05+0.37 -> 0.42 | J92: 0 | P92: 0
A93: 废胶水 | B93: 900-014-13 | C93: 液态 | D93: 0 | J93: 0 | P93: 0
A94: 发泡废料，废胶水 | B94: 900-014-13 | C94: 固态 | D94: 6.86 | E94: =9.44+13.62+16.78 -> 39.84 | F94: =5.44+4+6.86 -> 16.3 | J94: 30.4 | K94: 30.4 | P94: 30.4
A95: 废树脂 | B95: 900-015-13 | C95: 固态 | D95: 0 | J95: 0 | P95: 0
A96: 废树脂 | B96: 900-015-13 | C96: 半固态 | D96: 0 | J96: 0 | P96: 0
A97: 废水 | B97: 900-016-13 | C97: 液态 | D97: 2 | J97: 2 | K97: 2 | P97: 2
A98: 有机树脂废物 | B98: 900-016-13 | C98: 半固态 | D98: 0 | J98: 0 | P98: 0
A99: 树脂胶 | B99: 265-101-13 | C99: 固态 | D99: 18.48 | E99: =0.29 -> 0.29 | F99: =9.48+9+0.29 -> 18.77 | J99: 0 | P99: 0
A100: 不合格有机树脂 | B100: 265-101-13 | C100: 半固态 | D100: 0 | J100: 0 | P100: 0
A101: 废母液 | B101: 265-102-13 | C101: 液态 | D101: 38.76 | J101: 38.76 | K101: 38.76 | P101: 38.76
A102: 含盐废水 | B102: 265-103-13 | C102: 液态 | D102: 0 | J102: 0 | P102: 0
A103: 釜残与滤渣 | B103: 265-103-13 | C103: 半固态 | D103: 0 | J103: 0 | P103: 0
A104: 产品水解物、氯化镁盐 | B104: 265-103-13 | C104: 固态 | D104: 0 | J104: 0 | P104: 0
A105: 污泥 | B105: 265-104-13 | C105: 半固态 | D105: 0 | J105: 0 | P105: 0
A106: 污水处理站污泥 | B106: 265-104-13 | C106: 固态 | D106: 6.69 | F106: =6.69 -> 6.69 | J106: 0 | P106: 0
A107: 印刷版 | B107: 231-002-16 | C107: 固态 | D107: 0 | J107: 0 | P107: 0
A108: 废定影液 | B108: 266-009-16 | C108: 液态 | D108: 0 | J108: 0 | P108: 0
A109: 废胶片 | B109: 266-009-16 | C109: 固态 | D109: 0 | J109: 0 | P109: 0
A110: 废显影液 | B110: 900-019-16 | C110: 液态 | D110: 0.153 | F110: =0.153 -> 0.153 | J110: 0 | P110: 0
A111: 废显影液 | B111: 398-001-16 | C111: 液态 | D111: 0 | J111: 0 | P111: 0
A112: 助镀再生废渣 | B112: 336-051-17 | C112: 固态 | D112: 0 | J112: 0 | P112: 0
A113: 含铬污泥 | B113: 336-060-17 | C113: 固态 | D113: 0 | J113: 0 | P113: 0
A114: 镀铜溶液 | B114: 336-062-17 | C114: 液态 | D114: 0 | J114: 0 | P114: 0
A115: 含铜污泥 | B115: 336-062-17 | C115: 固态 | D115: 0 | J115: 0 | P115: 0
A116: 电镀污泥 | B116: 336-052-17 | C116: 固态 | D116: 0 | E116: =32.32 -> 32.32 | J116: 32.32 | L116: 32.32 | P116: 32.32
A117: 污泥 | B117: 336-053-17 | C117: 固态 | D117: 0 | J117: 0 | P117: 0
A118: 镀镍废液 | B118: 336-055-17 | C118: 液态 | D118: 0 | E118: =11 -> 11 | J118: 11 | L118: 11 | P118: 11
A119: 镀铁电解液 | B119: 336-063-17 | C119: 液态 | D119: 48.53 | J119: 48.53 | L119: =48.53-30 -> 18.53 | O119: 30 | P119: 48.53
A120: 电镀污泥 | B120: 336-063-17 | C120: 半固态 | D120: 0 | J120: 0 | P120: 0
A121: 电镀污泥 | B121: 336-063-17 | C121: 固态 | D121: 0.036 | F121: =0.036 -> 0.036 | J121: 0 | P121: 0
A122: 磷化污泥 | B122: 336-064-17 | C122: 固态 | D122: 0 | E122: =12.1+4 -> 16.1 | F122: =12.1 -> 12.1 | J122: 4 | L122: 4 | P122: 4
A123: 金属表面处理污泥 | B123: 336-064-17 | C123: 半固态 | D123: 0 | J123: 0 | P123: 0
A124: 金属表面处理污泥 | B124: 336-064-17 | C124: 液态 | D124: 11.02 | J124: 11.02 | L124: 11.02 | P124: 11.02
A125: 污泥 | B125: 336-069-17 | C125: 半固态 | D125: 0 | J125: 0 | P125: 0
A126: 污泥 | B126: 336-069-17 | C126: 液态 | D126: 25.58 | J126: 25.58 | L126: 25.58 | P126: 25.58
A127: 污泥 | B127: 336-069-17 | C127: 固态 | D127: 0 | J127: 0 | P127: 0
A128: 活性炭 | B128: 772-005-18 | C128: 固态 | D128: 0 | J128: 0 | P128: 0
A129: 废UV灯管 | B129: 900-023-29 | C129: 固态 | D129: 0 | J129: 0 | P129: 0
A130: 废碱液 | B130: 251-015-35 | C130: 液态 | D130: 26.08 | J130: 26.08 | L130: 26.08 | P130: 26.08
A131: 废碱泥 | B131: 251-015-35 | C131: 半固态 | D131: 42.34 | F131: =10+15.5 -> 25.5 | J131: 16.84 | L131: 16.84 | P131: 16.84
A132: 片碱袋 | B132: 900-399-35 | C132: 固态 | D132: 0 | J132: 0 | P132: =K132+L132+M132+N132+O132 -> 0
A133: 清洁剂 | B133: 900-399-35 | C133: 液态 | D133: 0.1 | F133: =0.1 -> 0.1 | J133: 0 | P133: 0
A134: 废硫氢化钠残渣 | B134: 900-399-35 | C134: 半固态 | D134: 0 | J134: 0 | P134: 0
A135: 废碱液 | B135: 900-352-35 | C135: 液态 | D135: 0 | J135: 0 | P135: 0
A136: 废碱液 | B136: 900-354-35 | C136: 液态 | D136: 0 | J136: =D136+E136-F136-G136-H136-I136 -> 0 | P136: 0
A137: 废抗燃油 | B137: 900-033-37 | C137: 液态 | D137: 0 | J137: 0 | P137: 0
A138: 含酚废水 | B138: 261-070-39 | C138: 液态 | D138: 230.22 | E138: =32.46 -> 32.46 | F138: =7+3+6.82+10+10 -> 36.82 | G138: =13 -> 13 | J138: 212.86 | N138: 212.86 | P138: 212.86
A139: 废活性炭 | B139: 261-071-39 | C139: 固态 | D139: 0 | J139: 0 | P139: 0
A140: 污泥 | B140: 261-084-45 | C140: 半固态 | D140: 37.8 | J140: 37.8 | L140: 37.8 | P140: 37.8
A141: 含油废物 | B141: 900-041-49 | C141: 固态 | D141: 266.01989 | E141: =29.9385+15.1455+12.913+24.991+15.335+3.303+28.867+17.726+1.241 -> 149.46 | F141: =12.63674-0.62015+9.026+7.09747+13.68158+13.4315+11.965+12.7855+6.6+2.75+12.36625+22.46+1.64+36.6185+5.2995+2.9 -> 170.63789 | H141: =7.08+6.565+6.454 -> 20.099 | J141: 224.743 | K141: 223.496 | L141: 1.247 | P141: 224.743
A142: 含有或沾染危险废物的废弃物 | B142: 900-041-49 | C142: 半固态 | D142: 0 | J142: 0 | P142: 0
A143: 电捕焦油 | B143: 900-041-49 | C143: 液态 | D143: 0.36 | F143: =0.01+0.35 -> 0.36 | J143: 0 | P143: 0
A144: 废酸碱袋 | B144: 900-042-49 | C144: 固态 | D144: 1.08 | E144: =1.066 -> 1.066 | F144: =0.986+0.094+1.066 -> 2.146 | J144: 0 | P144: 0
A145: 污泥 | B145: 772-006-49 | C145: 固态 | D145: 5.967 | F145: =5.707+0.26 -> 5.967 | J145: 0 | P145: 0
A146: 污泥 | B146: 772-006-49 | C146: 半固态 | D146: 0 | J146: 0 | P146: 0
A147: 废活性炭 | B147: 900-039-49 | C147: 固态 | D147: 10.7682 | E147: =0.32+0.47+2.136+0.42 -> 3.346 | F147: =0.05+4.5812+0.62+2.799+2.108+0.15+0.62+0.16+2.606+0.42 -> 14.1142 | J147: 0 | P147: 0
A148: 废水污泥 | B148: 900-046-49 | C148: 固态 | D148: 5.65769 | F148: =4.76+0.89769 -> 5.65769 | J148: 0 | P148: 0
A149: 污泥 | B149: 900-046-49 | C149: 半固态 | D149: 1.475 | F149: =1.475 -> 1.475 | J149: 0 | P149: 0
A150: 过期化学药品 | B150: 900-047-49 | C150: 固态 | D150: 2.417 | E150: =1.15+0.171 -> 1.321 | F150: =0.108+0.5325+1.25+1.8475 -> 3.738 | J150: 0 | P150: 0
A151: 乙腈、异丙酮、废液 | B151: 900-047-49 | C151: 液态 | D151: 100.81876 | E151: =2+2.086+2.735+5+3.5087+4.5809+2.67 -> 22.5806 | F151: =0.62015+4.27921+4.25393+4.07+4.24045+4.12+3.082+3.41593+3.27494+2.6+2.63815+7.5793+2.5+1+0.513 -> 48.18706 | G151: =4.4539 -> 4.4539 | J151: 70.7584 | L151: 70.7584 | P151: 70.7584
A152: 过期药品 | B152: 900-999-49 | C152: 固态 | D152: 0 | J152: 0 | P152: 0
A153: 过期面膜原料、残液 | B153: 900-999-49 | C153: 液态 | D153: 31.284 | F153: =1.804 -> 1.804 | J153: 29.48 | L153: 29.48 | P153: 29.48
A154: 废催化剂 | B154: 261-152-50 | C154: 固态 | D154: 0 | J154: 0 | P154: 0
A155: 小计： | D155: 5795.86719 | E155: =SUM(E4:E154) -> 897.9541 | F155: 1012.48032 | G155: 28.2709 | H155: 44.409 | I155: 0 | J155: 5608.66107 | K155: =SUM(K4:K154) -> 1039.646 | L155: 1461.6688 | M155: 275.214 | N155: 2608.13227 | O155: 224 | P155: 5608.66107
A156: 合计： | F156: =F155+G155+H155 -> 1085.16022
